[Event "*** Titled Tuesday Blitz"]
[Site "Chess.com"]
[Date "2021.04.20"]
[Round "11"]
[White "Keks2017"]
[Black "QuintilianoR"]
[Result "1-0"]
[WhiteElo "2464"]
[BlackElo "2647"]
[TimeControl "180+1"]
[EndTime "12:06:08 PDT"]
[Termination "Keks2017 won on time"]

1. g3 {[%clk 0:03:00.9]} 1... d5 {[%clk 0:02:57.4]} 2. Bg2 {[%clk 0:03:00.1]}
2... Nf6 {[%clk 0:02:56.6]} 3. d3 {[%clk 0:03:00.1]} 3... e6 {[%clk 0:02:56.8]}
4. Nf3 {[%clk 0:02:59.7]} 4... Be7 {[%clk 0:02:56]} 5. O-O {[%clk 0:02:59.8]}
5... O-O {[%clk 0:02:56.4]} 6. Nbd2 {[%clk 0:02:59.8]} 6... c5 {[%clk
0:02:55.8]} 7. e4 {[%clk 0:02:59.8]} 7... Nc6 {[%clk 0:02:56.3]} 8. Re1 {[%clk
0:02:57.7]} 8... b5 {[%clk 0:02:56.2]} 9. e5 {[%clk 0:02:57.6]} 9... Nd7 {[%clk
0:02:55]} 10. Nf1 {[%clk 0:02:57.6]} 10... a5 {[%clk 0:02:53.5]} 11. h4 {[%clk
0:02:57]} 11... Re8 {[%clk 0:02:52.1]} 12. h5 {[%clk 0:02:55.8]} 12... h6 {[%clk
0:02:51.8]} 13. a4 {[%clk 0:02:51.5]} 13... b4 {[%clk 0:02:48.3]} 14. c3 {[%clk
0:02:50.3]} 14... Ba6 {[%clk 0:02:39.5]} 15. N1h2 {[%clk 0:02:48.7]} 15... bxc3
{[%clk 0:02:33.7]} 16. bxc3 {[%clk 0:02:48.1]} 16... Rb8 {[%clk 0:02:34.2]} 17.
Ng4 {[%clk 0:02:47.4]} 17... Bf8 {[%clk 0:02:33.9]} 18. Bf1 {[%clk 0:02:46.1]}
18... d4 {[%clk 0:02:13.7]} 19. c4 {[%clk 0:02:44.7]} 19... Bb7 {[%clk
0:01:53.7]} 20. Bg2 {[%clk 0:02:40.6]} 20... Nb4 {[%clk 0:01:52.1]} 21. Bf4
{[%clk 0:02:34.7]} 21... Bc6 {[%clk 0:01:45.1]} 22. Ra3 {[%clk 0:02:33.6]} 22...
Rb6 {[%clk 0:01:42.9]} 23. Nd2 {[%clk 0:02:32.5]} 23... Bxg2 {[%clk 0:01:41.1]}
24. Kxg2 {[%clk 0:02:32.3]} 24... f5 {[%clk 0:01:23.2]} 25. exf6 {[%clk
0:02:30.8]} 25... Nxf6 {[%clk 0:01:22.8]} 26. Nxf6+ {[%clk 0:02:30]} 26... Qxf6
{[%clk 0:01:23.7]} 27. Ne4 {[%clk 0:02:25.9]} 27... Qf5 {[%clk 0:01:18.5]} 28.
Bc7 {[%clk 0:02:06.2]} 28... Ra6 {[%clk 0:01:06]} 29. Bf4 {[%clk 0:01:52.5]}
29... e5 {[%clk 0:00:59.9]} 30. Bc1 {[%clk 0:01:51.8]} 30... Be7 {[%clk
0:00:55.2]} 31. Qe2 {[%clk 0:01:51.3]} 31... Rf8 {[%clk 0:00:53.9]} 32. Rf1
{[%clk 0:01:49.7]} 32... Qd7 {[%clk 0:00:46.1]} 33. f4 {[%clk 0:01:44.3]} 33...
exf4 {[%clk 0:00:43.6]} 34. Rxf4 {[%clk 0:01:43.3]} 34... Rxf4 {[%clk
0:00:41.2]} 35. Bxf4 {[%clk 0:01:43]} 35... Qf5 {[%clk 0:00:22.5]} 36. Ra1
{[%clk 0:01:33.8]} 36... Re6 {[%clk 0:00:20.9]} 37. Re1 {[%clk 0:01:33.2]} 37...
Kf8 {[%clk 0:00:19.1]} 38. Kg1 {[%clk 0:01:22.2]} 38... Qh3 {[%clk 0:00:15.2]}
39. Qf3 {[%clk 0:01:17.4]} 39... Kg8 {[%clk 0:00:15.1]} 40. Re2 {[%clk
0:01:12.2]} 40... Qf5 {[%clk 0:00:14.3]} 41. Kg2 {[%clk 0:01:03.9]} 41... Qf7
{[%clk 0:00:14.1]} 42. Nf2 {[%clk 0:00:56.9]} 42... Rxe2 {[%clk 0:00:13.3]} 43.
Qxe2 {[%clk 0:00:56.3]} 43... Bf8 {[%clk 0:00:14.2]} 44. Qe5 {[%clk 0:00:41.3]}
44... Qb7+ {[%clk 0:00:13.9]} 45. Kg1 {[%clk 0:00:34.4]} 45... Qc6 {[%clk
0:00:13.4]} 46. Qb8 {[%clk 0:00:30]} 46... Qxa4 {[%clk 0:00:13]} 47. Bd6 {[%clk
0:00:29.3]} 1-0

[Event "*** Titled Tuesday Blitz"]
[Site "Chess.com"]
[Date "2021.04.20"]
[Round "11"]
[White "TeukkaSalama"]
[Black "Aslanov_Umid"]
[Result "1/2-1/2"]
[WhiteElo "2384"]
[BlackElo "2451"]
[TimeControl "180+1"]
[EndTime "12:06:08 PDT"]
[Termination "Game drawn by repetition"]

1. d4 {[%clk 0:03:00.9]} 1... d5 {[%clk 0:03:00.1]} 2. Bf4 {[%clk 0:03:00.8]}
2... Nf6 {[%clk 0:03:00]} 3. e3 {[%clk 0:03:01.1]} 3... Bf5 {[%clk 0:02:59.3]}
4. c4 {[%clk 0:03:00.6]} 4... e6 {[%clk 0:02:56.5]} 5. Nc3 {[%clk 0:02:59.7]}
5... c6 {[%clk 0:02:55.5]} 6. Qb3 {[%clk 0:02:59.1]} 6... Qb6 {[%clk 0:02:48.4]}
7. c5 {[%clk 0:02:59.4]} 7... Qxb3 {[%clk 0:02:47.5]} 8. axb3 {[%clk 0:03:00.3]}
8... Nbd7 {[%clk 0:02:44.3]} 9. b4 {[%clk 0:02:59.8]} 9... Nh5 {[%clk 0:02:40]}
10. Bc7 {[%clk 0:02:57.6]} 10... Be7 {[%clk 0:02:25.4]} 11. Be2 {[%clk
0:02:53.1]} 11... Nhf6 {[%clk 0:02:24]} 12. f4 {[%clk 0:02:49.6]} 12... O-O
{[%clk 0:02:23.4]} 13. Nf3 {[%clk 0:02:49.1]} 13... a6 {[%clk 0:02:19.1]} 14.
O-O {[%clk 0:02:47.8]} 14... Ng4 {[%clk 0:02:14.9]} 15. Nd1 {[%clk 0:02:41]}
15... Bc2 {[%clk 0:02:11.1]} 16. Ra3 {[%clk 0:02:39.7]} 16... Bxd1 {[%clk
0:02:00.3]} 17. Rxd1 {[%clk 0:02:34.5]} 17... Rac8 {[%clk 0:02:00.5]} 18. Bd6
{[%clk 0:02:28.4]} 18... Bxd6 {[%clk 0:02:00.2]} 19. cxd6 {[%clk 0:02:29.3]}
19... Rfd8 {[%clk 0:01:55.1]} 20. Nd2 {[%clk 0:02:19.4]} 20... Ngf6 {[%clk
0:01:53.8]} 21. Nb3 {[%clk 0:02:18.7]} 21... Ne4 {[%clk 0:01:45.5]} 22. Na5
{[%clk 0:02:08.3]} 22... Nxd6 {[%clk 0:01:44.6]} 23. Rc1 {[%clk 0:01:56.3]}
23... Nf6 {[%clk 0:01:41.5]} 24. Bd3 {[%clk 0:01:46.5]} 24... Nfe4 {[%clk
0:01:27.2]} 25. Bxe4 {[%clk 0:01:44.7]} 25... dxe4 {[%clk 0:01:28.1]} 26. Kf2
{[%clk 0:01:35.9]} 26... f6 {[%clk 0:01:26.6]} 27. Rac3 {[%clk 0:01:29.7]} 27...
Kf7 {[%clk 0:01:19.9]} 28. g4 {[%clk 0:01:16.3]} 28... e5 {[%clk 0:01:12.4]} 29.
dxe5 {[%clk 0:01:06.6]} 29... fxe5 {[%clk 0:01:13.3]} 30. fxe5 {[%clk
0:00:55.6]} 30... Nb5 {[%clk 0:01:12.3]} 31. Rc4 {[%clk 0:00:50.5]} 31... Rd2+
{[%clk 0:00:53.3]} 32. Kg3 {[%clk 0:00:49.9]} 32... Ke6 {[%clk 0:00:52.5]} 33.
Rxe4 {[%clk 0:00:48.7]} 33... Rxb2 {[%clk 0:00:50.6]} 34. Nxb7 {[%clk
0:00:45.9]} 34... Kd5 {[%clk 0:00:45.1]} 35. Rf4 {[%clk 0:00:32.3]} 35... Kxe5
{[%clk 0:00:42.8]} 36. Rc5+ {[%clk 0:00:29.6]} 36... Ke6 {[%clk 0:00:41.7]} 37.
Re4+ {[%clk 0:00:25.5]} 37... Kd7 {[%clk 0:00:35.5]} 38. Rf5 {[%clk 0:00:25.6]}
38... Kc7 {[%clk 0:00:33.6]} 39. Nc5 {[%clk 0:00:25.3]} 39... Rd2 {[%clk
0:00:16.8]} 40. Rf7+ {[%clk 0:00:24.4]} 40... Kb8 {[%clk 0:00:16.8]} 41. Nxa6+
{[%clk 0:00:19.6]} 41... Ka8 {[%clk 0:00:16.7]} 42. Ree7 {[%clk 0:00:18.5]}
42... Rcd8 {[%clk 0:00:15.5]} 43. Ra7+ {[%clk 0:00:18.2]} 43... Nxa7 {[%clk
0:00:15.3]} 44. Nc7+ {[%clk 0:00:15.3]} 44... Kb8 {[%clk 0:00:15.6]} 45. Na6+
{[%clk 0:00:15.7]} 45... Ka8 {[%clk 0:00:15.4]} 46. Nc7+ {[%clk 0:00:15.8]}
46... Kb8 {[%clk 0:00:15.9]} 47. Na6+ {[%clk 0:00:16.4]} 47... Ka8 {[%clk
0:00:16.3]} 1/2-1/2

[Event "*** Titled Tuesday Blitz"]
[Site "Chess.com"]
[Date "2021.04.20"]
[Round "11"]
[White "dhaessel"]
[Black "yonaltimur"]
[Result "0-1"]
[WhiteElo "2043"]
[BlackElo "1777"]
[TimeControl "180+1"]
[EndTime "12:06:09 PDT"]
[Termination "yonaltimur won by checkmate"]

1. d4 {[%clk 0:02:49.8]} 1... d5 {[%clk 0:02:56.6]} 2. c4 {[%clk 0:02:49.7]}
2... dxc4 {[%clk 0:02:55.8]} 3. e4 {[%clk 0:02:49]} 3... Nf6 {[%clk 0:02:53.8]}
4. e5 {[%clk 0:02:48.6]} 4... Nd5 {[%clk 0:02:53.2]} 5. Bxc4 {[%clk 0:02:49.1]}
5... Bf5 {[%clk 0:02:51.3]} 6. Nf3 {[%clk 0:02:44.2]} 6... e6 {[%clk 0:02:46.2]}
7. O-O {[%clk 0:02:43]} 7... Be7 {[%clk 0:02:42.4]} 8. Nc3 {[%clk 0:02:42.3]}
8... c6 {[%clk 0:02:29.5]} 9. a3 {[%clk 0:02:37.3]} 9... Nd7 {[%clk 0:02:23.4]}
10. b4 {[%clk 0:02:36.2]} 10... Nxc3 {[%clk 0:02:16.7]} 11. Qb3 {[%clk 0:02:35]}
11... Nd5 {[%clk 0:02:14.4]} 12. Rd1 {[%clk 0:02:34.6]} 12... O-O {[%clk
0:02:12.8]} 13. a4 {[%clk 0:02:31.7]} 13... N7b6 {[%clk 0:02:10.7]} 14. Bf1
{[%clk 0:02:30]} 14... Nxb4 {[%clk 0:02:08]} 15. a5 {[%clk 0:02:24.3]} 15...
N6d5 {[%clk 0:02:07.4]} 16. Bd2 {[%clk 0:02:19.6]} 16... Bc2 {[%clk 0:02:06.7]}
17. Qb2 {[%clk 0:02:17.4]} 17... Bxd1 {[%clk 0:02:06.8]} 18. Rxd1 {[%clk
0:02:16.9]} 18... Qxa5 {[%clk 0:02:04.5]} 19. Ra1 {[%clk 0:02:15.8]} 19... Qc7
{[%clk 0:02:01.6]} 20. h4 {[%clk 0:02:10.2]} 20... a5 {[%clk 0:02:00]} 21. g3
{[%clk 0:02:08.2]} 21... a4 {[%clk 0:01:59.1]} 22. Ra3 {[%clk 0:02:06.3]} 22...
b5 {[%clk 0:01:50]} 23. h5 {[%clk 0:02:00.2]} 23... h6 {[%clk 0:01:49.2]} 24.
Ne1 {[%clk 0:01:58.5]} 24... Na6 {[%clk 0:01:47.7]} 25. Ra1 {[%clk 0:01:58.2]}
25... a3 {[%clk 0:01:46.8]} 26. Qb3 {[%clk 0:01:57.3]} 26... b4 {[%clk
0:01:42.6]} 27. Nd3 {[%clk 0:01:54.7]} 27... c5 {[%clk 0:01:41.1]} 28. Rc1
{[%clk 0:01:53.1]} 28... Rfc8 {[%clk 0:01:37.3]} 29. dxc5 {[%clk 0:01:47.1]}
29... Nxc5 {[%clk 0:01:35.8]} 30. Qc4 {[%clk 0:01:39.5]} 30... a2 {[%clk
0:01:33.7]} 31. Nxb4 {[%clk 0:01:32.7]} 31... Nxb4 {[%clk 0:01:30.7]} 32. Qxb4
{[%clk 0:01:32.7]} 32... a1=Q {[%clk 0:01:28.4]} 33. Rxa1 {[%clk 0:01:31.1]}
33... Rxa1 {[%clk 0:01:27.6]} 34. Bc3 {[%clk 0:01:30.9]} 34... Rb8 {[%clk
0:01:22.4]} 35. Qc4 {[%clk 0:01:30.2]} 35... Rc1 {[%clk 0:01:20.8]} 36. Kg2
{[%clk 0:01:27.3]} 36... Rbb1 {[%clk 0:01:18.3]} 37. Be2 {[%clk 0:01:24.6]}
37... Rg1+ {[%clk 0:01:17.1]} 38. Kh2 {[%clk 0:01:22.1]} 38... Rh1+ {[%clk
0:01:14.7]} 39. Kg2 {[%clk 0:01:22.3]} 39... Qc6+ {[%clk 0:01:13.4]} 40. f3
{[%clk 0:01:18.7]} 40... Rbg1+ {[%clk 0:01:08]} 41. Kf2 {[%clk 0:01:18.8]} 41...
Qb6 {[%clk 0:00:46.3]} 42. Bd4 {[%clk 0:01:18]} 42... Qa5 {[%clk 0:00:41.2]} 43.
Bc3 {[%clk 0:01:13.6]} 43... Qa3 {[%clk 0:00:34.9]} 44. Bb4 {[%clk 0:01:04.4]}
44... Qc1 {[%clk 0:00:32.1]} 45. Qxc1 {[%clk 0:01:03]} 45... Rxc1 {[%clk
0:00:31.7]} 46. Ke3 {[%clk 0:01:02.7]} 46... Bf8 {[%clk 0:00:29.2]} 47. Bd2
{[%clk 0:01:01.8]} 47... Ra1 {[%clk 0:00:27.7]} 48. Bc3 {[%clk 0:01:00.7]} 48...
Ra3 {[%clk 0:00:25.9]} 49. Kd4 {[%clk 0:01:00.9]} 49... Nb3+ {[%clk 0:00:24.6]}
50. Kc4 {[%clk 0:01:00.3]} 50... Na5+ {[%clk 0:00:22.8]} 51. Bxa5 {[%clk
0:00:53.1]} 51... Rxa5 {[%clk 0:00:22.1]} 52. g4 {[%clk 0:00:54]} 52... Rc5+
{[%clk 0:00:21.7]} 53. Kd4 {[%clk 0:00:53.4]} 53... Rh2 {[%clk 0:00:21.7]} 54.
Bd3 {[%clk 0:00:53]} 54... Rd2 {[%clk 0:00:21.2]} 55. Ke3 {[%clk 0:00:52.2]}
55... Rd1 {[%clk 0:00:19.1]} 56. f4 {[%clk 0:00:51.4]} 56... Rc3 {[%clk
0:00:17.9]} 57. Ke2 {[%clk 0:00:50.9]} 57... Rcxd3 {[%clk 0:00:15.1]} 58. g5
{[%clk 0:00:51]} 58... R1d2+ {[%clk 0:00:14.3]} 59. Ke1 {[%clk 0:00:50.9]} 59...
Ra2 {[%clk 0:00:13.8]} 60. gxh6 {[%clk 0:00:49.5]} 60... Rb3 {[%clk 0:00:13.7]}
61. f5 {[%clk 0:00:48.2]} 61... Rb1# {[%clk 0:00:12]} 0-1

[Event "*** Titled Tuesday Blitz"]
[Site "Chess.com"]
[Date "2021.04.20"]
[Round "11"]
[White "Kale36"]
[Black "MPGM"]
[Result "1-0"]
[WhiteElo "2337"]
[BlackElo "2490"]
[TimeControl "180+1"]
[EndTime "12:06:12 PDT"]
[Termination "Kale36 won on time"]

1. b3 {[%clk 0:03:00.9]} 1... Nf6 {[%clk 0:02:58.7]} 2. Bb2 {[%clk 0:03:00.8]}
2... g6 {[%clk 0:02:59.6]} 3. g4 {[%clk 0:03:00.5]} 3... Bg7 {[%clk 0:02:55.7]}
4. g5 {[%clk 0:02:59.7]} 4... Nh5 {[%clk 0:02:55.6]} 5. Bxg7 {[%clk 0:03:00.6]}
5... Nxg7 {[%clk 0:02:55.3]} 6. d4 {[%clk 0:03:01.2]} 6... O-O {[%clk
0:02:50.7]} 7. Nc3 {[%clk 0:03:00]} 7... f6 {[%clk 0:02:49.4]} 8. h4 {[%clk
0:02:49.1]} 8... c5 {[%clk 0:02:32.9]} 9. d5 {[%clk 0:02:32.7]} 9... d6 {[%clk
0:02:20.9]} 10. Qd2 {[%clk 0:02:30.2]} 10... Nd7 {[%clk 0:02:01.6]} 11. Nf3
{[%clk 0:02:27.7]} 11... Ne5 {[%clk 0:01:59.1]} 12. Bg2 {[%clk 0:02:15.7]} 12...
a6 {[%clk 0:01:47.9]} 13. gxf6 {[%clk 0:01:57.7]} 13... exf6 {[%clk 0:01:46.3]}
14. Ne4 {[%clk 0:01:44.4]} 14... Bf5 {[%clk 0:01:42.5]} 15. Ng3 {[%clk
0:01:43.5]} 15... Bg4 {[%clk 0:01:41.8]} 16. Nh2 {[%clk 0:01:32.9]} 16... Bd7
{[%clk 0:01:36.8]} 17. f4 {[%clk 0:01:32.2]} 17... Ng4 {[%clk 0:01:33.5]} 18. h5
{[%clk 0:01:18.9]} 18... c4 {[%clk 0:00:59]} 19. hxg6 {[%clk 0:01:15.2]} 19...
hxg6 {[%clk 0:00:59.2]} 20. Bf3 {[%clk 0:01:02.6]} 20... Nxh2 {[%clk 0:00:56.1]}
21. Rxh2 {[%clk 0:01:03.5]} 21... Rc8 {[%clk 0:00:46.1]} 22. Kf2 {[%clk
0:00:53.6]} 22... Kf7 {[%clk 0:00:36.4]} 23. Rh7 {[%clk 0:00:49.6]} 23... Rh8
{[%clk 0:00:36.1]} 24. Rah1 {[%clk 0:00:49.4]} 24... Rxh7 {[%clk 0:00:34.8]} 25.
Rxh7 {[%clk 0:00:50.3]} 25... Qb6+ {[%clk 0:00:23.4]} 26. e3 {[%clk 0:00:48.7]}
26... cxb3 {[%clk 0:00:20.5]} 27. axb3 {[%clk 0:00:47.9]} 27... Qc5 {[%clk
0:00:20.5]} 28. c4 {[%clk 0:00:46.8]} 28... b5 {[%clk 0:00:20.6]} 29. Be2 {[%clk
0:00:45.1]} 29... bxc4 {[%clk 0:00:20]} 30. bxc4 {[%clk 0:00:42.2]} 30... Rb8
{[%clk 0:00:18.3]} 31. Ne4 {[%clk 0:00:20.8]} 31... Qb6 {[%clk 0:00:15.1]} 32.
c5 {[%clk 0:00:17.5]} 32... dxc5 {[%clk 0:00:14]} 33. Bc4 {[%clk 0:00:16.3]}
33... Bb5 {[%clk 0:00:08.6]} 34. Qc3 {[%clk 0:00:12.3]} 34... Bxc4 {[%clk
0:00:07.9]} 35. Qxc4 {[%clk 0:00:13.2]} 35... Qb5 {[%clk 0:00:04.4]} 36. Nd6+
{[%clk 0:00:11.7]} 36... Kg8 {[%clk 0:00:04.7]} 37. Nxb5 {[%clk 0:00:12.6]}
37... axb5 {[%clk 0:00:05.4]} 38. Qxc5 {[%clk 0:00:12.6]} 38... Kxh7 {[%clk
0:00:05.5]} 39. d6 {[%clk 0:00:10.4]} 39... b4 {[%clk 0:00:03.3]} 40. Qc7 {[%clk
0:00:10.4]} 40... Rf8 {[%clk 0:00:01.4]} 41. d7 {[%clk 0:00:10.3]} 41... Ne6
{[%clk 0:00:01.7]} 42. Qd6 {[%clk 0:00:10]} 1-0

[Event "*** Titled Tuesday Blitz"]
[Site "Chess.com"]
[Date "2021.04.20"]
[Round "11"]
[White "Grineva_Marianna"]
[Black "Eloist"]
[Result "0-1"]
[WhiteElo "2228"]
[BlackElo "2364"]
[TimeControl "180+1"]
[EndTime "12:06:12 PDT"]
[Termination "Eloist won on time"]

1. e4 {[%clk 0:03:00.5]} 1... e6 {[%clk 0:02:57.6]} 2. d4 {[%clk 0:02:59.3]}
2... d5 {[%clk 0:02:57.1]} 3. Nd2 {[%clk 0:02:59.4]} 3... Nf6 {[%clk 0:02:56.6]}
4. e5 {[%clk 0:02:55.7]} 4... Nfd7 {[%clk 0:02:56.6]} 5. Bd3 {[%clk 0:02:54.9]}
5... c5 {[%clk 0:02:56.5]} 6. c3 {[%clk 0:02:54]} 6... b6 {[%clk 0:02:56.7]} 7.
Nh3 {[%clk 0:02:46.4]} 7... Ba6 {[%clk 0:02:56.6]} 8. Bxa6 {[%clk 0:02:45.6]}
8... Nxa6 {[%clk 0:02:57.5]} 9. O-O {[%clk 0:02:36]} 9... b5 {[%clk 0:02:57.3]}
10. Qg4 {[%clk 0:02:34.8]} 10... Qb6 {[%clk 0:02:51.4]} 11. Re1 {[%clk 0:02:26]}
11... c4 {[%clk 0:02:46.3]} 12. Nf1 {[%clk 0:02:22.5]} 12... b4 {[%clk
0:02:35.4]} 13. Bg5 {[%clk 0:02:15.3]} 13... h6 {[%clk 0:02:31.8]} 14. Bd2
{[%clk 0:02:03.9]} 14... b3 {[%clk 0:02:07.2]} 15. a3 {[%clk 0:01:36.8]} 15...
Nc7 {[%clk 0:02:06.4]} 16. Ng3 {[%clk 0:01:26.8]} 16... Qc6 {[%clk 0:02:02.2]}
17. Nh5 {[%clk 0:01:26.5]} 17... Rh7 {[%clk 0:01:56.5]} 18. f4 {[%clk 0:01:17]}
18... g6 {[%clk 0:01:47.5]} 19. Ng3 {[%clk 0:00:47.2]} 19... O-O-O {[%clk
0:01:45.6]} 20. Qf3 {[%clk 0:00:45.5]} 20... Nb6 {[%clk 0:01:40.1]} 21. Nf1
{[%clk 0:00:45.2]} 21... Be7 {[%clk 0:01:38.9]} 22. Ne3 {[%clk 0:00:42.2]} 22...
Kb7 {[%clk 0:01:32.6]} 23. Nf2 {[%clk 0:00:42]} 23... h5 {[%clk 0:01:30.5]} 24.
Nh3 {[%clk 0:00:37.1]} 24... Na4 {[%clk 0:01:28]} 25. Rab1 {[%clk 0:00:32.4]}
25... Nxb2 {[%clk 0:01:22.7]} 26. Rxb2 {[%clk 0:00:30.9]} 26... Bxa3 {[%clk
0:01:22.5]} 27. Rbb1 {[%clk 0:00:31.3]} 27... Be7 {[%clk 0:01:20.1]} 28. Ng5
{[%clk 0:00:27.3]} 28... Bxg5 {[%clk 0:01:19.3]} 29. fxg5 {[%clk 0:00:28.2]}
29... a5 {[%clk 0:01:19.4]} 30. Bc1 {[%clk 0:00:28.1]} 30... Nb5 {[%clk
0:01:15.6]} 31. Bb2 {[%clk 0:00:17.7]} 31... a4 {[%clk 0:01:15.4]} 32. Ra1
{[%clk 0:00:18.2]} 32... Ra8 {[%clk 0:01:15.1]} 33. Qf6 {[%clk 0:00:15.2]} 33...
Qd7 {[%clk 0:01:04]} 34. Ba3 {[%clk 0:00:14.4]} 34... Nxc3 {[%clk 0:01:01.7]}
35. Nxc4 {[%clk 0:00:12.5]} 35... dxc4 {[%clk 0:00:59.8]} 36. Rac1 {[%clk
0:00:12.3]} 36... Nd5 {[%clk 0:00:57.3]} 37. Qf3 {[%clk 0:00:12.6]} 37... Qc6
{[%clk 0:00:49.1]} 38. Re2 {[%clk 0:00:11.4]} 38... c3 {[%clk 0:00:48.8]} 39. h3
{[%clk 0:00:07.1]} 39... h4 {[%clk 0:00:47.7]} 40. Kh2 {[%clk 0:00:06.1]} 40...
Qc4 {[%clk 0:00:46.1]} 41. Bc5 {[%clk 0:00:04.8]} 41... a3 {[%clk 0:00:43.6]}
42. Re3 {[%clk 0:00:04.4]} 42... b2 {[%clk 0:00:35.3]} 43. Rexc3 {[%clk
0:00:04.8]} 43... bxc1=Q {[%clk 0:00:34.6]} 44. Rb3+ {[%clk 0:00:01.7]} 44...
Kc6 {[%clk 0:00:31.5]} 0-1

[Event "*** Titled Tuesday Blitz"]
[Site "Chess.com"]
[Date "2021.04.20"]
[Round "11"]
[White "eduardoperalta"]
[Black "Nf3c5"]
[Result "0-1"]
[WhiteElo "2504"]
[BlackElo "2634"]
[TimeControl "180+1"]
[EndTime "12:06:16 PDT"]
[Termination "Nf3c5 won by checkmate"]

1. d4 {[%clk 0:03:00.9]} 1... Nf6 {[%clk 0:02:59.2]} 2. c4 {[%clk 0:03:01.3]}
2... g6 {[%clk 0:02:58.7]} 3. Nc3 {[%clk 0:03:01.8]} 3... d5 {[%clk 0:02:58.4]}
4. Nf3 {[%clk 0:03:01.1]} 4... Bg7 {[%clk 0:02:58]} 5. cxd5 {[%clk 0:03:01.7]}
5... Nxd5 {[%clk 0:02:57.7]} 6. e4 {[%clk 0:03:02.6]} 6... Nxc3 {[%clk
0:02:58.2]} 7. bxc3 {[%clk 0:03:03.5]} 7... O-O {[%clk 0:02:58.5]} 8. Rb1 {[%clk
0:03:04]} 8... c5 {[%clk 0:02:59.4]} 9. Be2 {[%clk 0:03:04.4]} 9... b6 {[%clk
0:02:47.5]} 10. O-O {[%clk 0:03:04.1]} 10... Bb7 {[%clk 0:02:47]} 11. Qd3 {[%clk
0:03:00.2]} 11... cxd4 {[%clk 0:02:37]} 12. cxd4 {[%clk 0:02:58.7]} 12... Nc6
{[%clk 0:02:37.2]} 13. Rd1 {[%clk 0:02:51]} 13... e6 {[%clk 0:02:29.2]} 14. Bg5
{[%clk 0:02:48.9]} 14... Qd6 {[%clk 0:02:22.8]} 15. Qe3 {[%clk 0:02:46.5]} 15...
Rfe8 {[%clk 0:02:14.5]} 16. h4 {[%clk 0:02:44.2]} 16... Rac8 {[%clk 0:02:12.5]}
17. h5 {[%clk 0:02:42.4]} 17... Nb4 {[%clk 0:01:57.9]} 18. Qa3 {[%clk
0:02:26.6]} 18... a5 {[%clk 0:01:41.1]} 19. h6 {[%clk 0:02:08.6]} 19... Bf8
{[%clk 0:01:38.2]} 20. e5 {[%clk 0:02:05.3]} 20... Qd5 {[%clk 0:01:32.3]} 21.
Qb3 {[%clk 0:01:39.9]} 21... Qxb3 {[%clk 0:01:21.5]} 22. Rxb3 {[%clk 0:01:39.2]}
22... Bd5 {[%clk 0:01:20.8]} 23. Rb2 {[%clk 0:01:37.8]} 23... Nxa2 {[%clk
0:01:18.8]} 24. Rxb6 {[%clk 0:01:23.6]} 24... Nc3 {[%clk 0:01:18.3]} 25. Re1
{[%clk 0:01:21]} 25... Nxe2+ {[%clk 0:01:14.8]} 26. Rxe2 {[%clk 0:01:21.2]}
26... a4 {[%clk 0:01:15.2]} 27. Rb1 {[%clk 0:00:47.8]} 27... a3 {[%clk
0:01:13.6]} 28. Ra1 {[%clk 0:00:47]} 28... Rb8 {[%clk 0:01:00]} 29. Bf4 {[%clk
0:00:28.7]} 29... Rec8 {[%clk 0:00:54.3]} 30. Kh2 {[%clk 0:00:27.3]} 30... Ra8
{[%clk 0:00:44.2]} 31. Ng5 {[%clk 0:00:19.8]} 31... a2 {[%clk 0:00:35.3]} 32.
Ne4 {[%clk 0:00:16.5]} 32... Be7 {[%clk 0:00:35.6]} 33. Nf6+ {[%clk 0:00:14.8]}
33... Bxf6 {[%clk 0:00:31.5]} 34. exf6 {[%clk 0:00:15.7]} 34... Kf8 {[%clk
0:00:30.5]} 35. Rb2 {[%clk 0:00:15.3]} 35... Ke8 {[%clk 0:00:30]} 36. Bd6 {[%clk
0:00:14.1]} 36... Kd7 {[%clk 0:00:29.8]} 37. Bc5 {[%clk 0:00:14.1]} 37... Ra4
{[%clk 0:00:28.2]} 38. g4 {[%clk 0:00:12.7]} 38... e5 {[%clk 0:00:27.1]} 39. Rd2
{[%clk 0:00:07.2]} 39... Ke6 {[%clk 0:00:18.4]} 40. g5 {[%clk 0:00:06.1]} 40...
Kf5 {[%clk 0:00:18]} 41. Bb6 {[%clk 0:00:02.7]} 41... exd4 {[%clk 0:00:15.3]}
42. Bxd4 {[%clk 0:00:02.8]} 42... Rcc4 {[%clk 0:00:15.6]} 43. Be3 {[%clk
0:00:02.9]} 43... Rh4+ {[%clk 0:00:15.9]} 44. Kg3 {[%clk 0:00:02.7]} 44... Rag4#
{[%clk 0:00:15.8]} 0-1

[Event "*** Titled Tuesday Blitz"]
[Site "Chess.com"]
[Date "2021.04.20"]
[Round "11"]
[White "GMSrinath"]
[Black "InvisibleWarrior2252"]
[Result "1-0"]
[WhiteElo "2830"]
[BlackElo "2558"]
[TimeControl "180+1"]
[EndTime "12:06:18 PDT"]
[Termination "GMSrinath won by checkmate"]

1. Nf3 {[%clk 0:03:00.9]} 1... Nf6 {[%clk 0:03:00.1]} 2. c4 {[%clk 0:03:00]}
2... e6 {[%clk 0:03:00.5]} 3. g3 {[%clk 0:03:00]} 3... d5 {[%clk 0:03:01]} 4.
Bg2 {[%clk 0:03:00.5]} 4... Be7 {[%clk 0:03:01.5]} 5. O-O {[%clk 0:03:01.1]}
5... O-O {[%clk 0:03:02.1]} 6. d4 {[%clk 0:03:01.7]} 6... dxc4 {[%clk 0:03:02]}
7. Qc2 {[%clk 0:03:02.3]} 7... a6 {[%clk 0:03:02.4]} 8. a4 {[%clk 0:03:01.7]}
8... Nc6 {[%clk 0:03:02.4]} 9. Qxc4 {[%clk 0:03:01.2]} 9... Na5 {[%clk
0:03:02.3]} 10. Qc2 {[%clk 0:02:51.6]} 10... b6 {[%clk 0:03:02]} 11. Ne5 {[%clk
0:02:34.3]} 11... Bb7 {[%clk 0:03:00]} 12. Bxb7 {[%clk 0:02:31.8]} 12... Nxb7
{[%clk 0:03:00.9]} 13. Nc6 {[%clk 0:02:31.9]} 13... Qe8 {[%clk 0:03:00.4]} 14.
Rd1 {[%clk 0:02:21.8]} 14... Bc5 {[%clk 0:02:54.1]} 15. Ne5 {[%clk 0:02:21]}
15... Bd6 {[%clk 0:02:50.3]} 16. Nd2 {[%clk 0:02:16.7]} 16... c5 {[%clk
0:02:46.4]} 17. Ndc4 {[%clk 0:02:11.5]} 17... cxd4 {[%clk 0:02:35.6]} 18. Nxd6
{[%clk 0:02:02.7]} 18... Nxd6 {[%clk 0:02:36.5]} 19. Rxd4 {[%clk 0:01:56.3]}
19... Nf5 {[%clk 0:02:34.7]} 20. Rc4 {[%clk 0:01:48.9]} 20... b5 {[%clk
0:02:27.5]} 21. Rc5 {[%clk 0:01:24]} 21... Nd4 {[%clk 0:01:45.1]} 22. Qd3 {[%clk
0:01:15.3]} 22... Rd8 {[%clk 0:01:41.6]} 23. axb5 {[%clk 0:00:54.8]} 23... axb5
{[%clk 0:01:29.4]} 24. Bf4 {[%clk 0:00:41.1]} 24... Qe7 {[%clk 0:01:24.8]} 25.
b4 {[%clk 0:00:40.9]} 25... Nh5 {[%clk 0:01:13.2]} 26. Qe3 {[%clk 0:00:18.5]}
26... f6 {[%clk 0:01:06.1]} 27. Nc6 {[%clk 0:00:14.4]} 27... Nxc6 {[%clk
0:01:01.4]} 28. Rxh5 {[%clk 0:00:15]} 28... e5 {[%clk 0:00:41.8]} 29. Qb3+
{[%clk 0:00:14.5]} 29... Kh8 {[%clk 0:00:39.5]} 30. Qc2 {[%clk 0:00:14.6]} 30...
g6 {[%clk 0:00:22.6]} 31. Bh6 {[%clk 0:00:14.7]} 31... Nd4 {[%clk 0:00:20.2]}
32. Bxf8 {[%clk 0:00:14.1]} 32... Rxf8 {[%clk 0:00:19.5]} 33. Qxg6 {[%clk
0:00:14.6]} 33... Nxe2+ {[%clk 0:00:16.7]} 34. Kf1 {[%clk 0:00:11.9]} 34... Nd4
{[%clk 0:00:16.7]} 35. Qe4 {[%clk 0:00:09.1]} 35... f5 {[%clk 0:00:14.8]} 36.
Qd5 {[%clk 0:00:09]} 36... Rd8 {[%clk 0:00:14.4]} 37. Ra8 {[%clk 0:00:08.6]}
37... Rxa8 {[%clk 0:00:11.9]} 38. Qxa8+ {[%clk 0:00:09.5]} 38... Kg7 {[%clk
0:00:12.8]} 39. Qa6 {[%clk 0:00:09.2]} 39... Qd7 {[%clk 0:00:09.1]} 40. Qh6+
{[%clk 0:00:09.1]} 40... Kg8 {[%clk 0:00:09.6]} 41. Rg5+ {[%clk 0:00:09.1]}
41... Kh8 {[%clk 0:00:08.3]} 42. Qf8# {[%clk 0:00:09]} 1-0